fUSD/lending_fUSD_20250606
["ID","MTS","AMOUNT","RATE_DAILY","PERIOD"]
[364739074,1749223842640,-480.0,0.00030164,7]
[364739076,1749223842651,-603.8,0.00030164,7]
[364739078,1749223842662,-622.54,0.00030164,7]
[364739080,1749223842672,-616.78,0.00030164,7]
[364739082,1749223842683,-588.5,0.00030164,7]
[364739084,1749223842694,-480.0,0.00030164,7]
[364739086,1749223842704,-715.08,0.00030164,7]
[364739088,1749223842714,-480.0,0.00030164,7]
[364739090,1749223842724,-480.0,0.00030164,7]
[364739093,1749223842735,-10050.67,0.00030164,7]
[364739095,1749223842744,-499.77647332,0.00030164,7]
[364739097,1749223842754,-830.75,0.00030164,7]
[364739099,1749223842764,-480.0,0.00030164,7]
[364739101,1749223842774,-1392.52,0.00030164,7]
[364739103,1749223842784,-480.0,0.00030164,7]
[364739105,1749223842794,-1364.18,0.00030164,7]
[364739107,1749223842804,-642.73,0.00030164,7]
[364739109,1749223842814,-669.27,0.00030164,7]
[364739111,1749223842824,-1736.33294354,0.00030164,7]
[364739113,1749223842837,-245.30705646,0.00030164,7]
[364739115,1749223842847,-480.0,0.00030164,7]
[364739118,1749223842857,-480.0,0.00030164,7]
[364739120,1749223842867,-1395.29,0.00030164,7]
[364739122,1749223842877,-1392.12,0.00030164,7]
[364739124,1749223842886,-480.0,0.00030164,7]
[364739126,1749223842896,-480.0,0.00030164,7]
[364739128,1749223842906,-315.11083484,0.00030164,7]
[364739130,1749223842922,-252.66,0.00030164,7]
[364739183,1749223843370,-205.0,0.00025995,2]
[364739185,1749223843380,-157.93559025,0.0002986,2]
[364739187,1749223843390,-433.10749744,0.00030164,7]
[364739480,1749223846313,-377.0,0.00030163,2]
[364739483,1749223846324,-273.68166772,0.00030164,7]
[364739485,1749223846333,-675.32971544,0.00030164,7]
[364739500,1749223846470,-1009.05028456,0.00030164,7]
[364739502,1749223846480,-468.59612848,0.00030164,7]
[364739527,1749223846719,-408.08821478,0.00030164,7]
[364741596,1749224467473,1000.0,0.00035616,120]
[364741597,1749224467738,336.24293355,0.00035616,120]
[364741599,1749224491428,157.35,0.00013699,2]
[364741601,1749224526852,287.61799769,0.00035616,120]
[364741618,1749224757568,5677.73558671,0.00035616,120]
[364741659,1749225032538,-151.00000001,0.00020951,2]
[364741660,1749225032548,-157.35,0.00020951,2]
[364741661,1749225032557,-200.0,0.000251,7]
[364741662,1749225032567,-178.42,0.00025717,2]
[364741663,1749225032577,-203.0,0.00026086,2]
[364741664,1749225032587,-705.5,0.00026326,2]
[364741665,1749225032596,-352.11385569,0.00026893,2]
[364741666,1749225032606,-177.41567776,0.00027948,2]
[364741667,1749225032616,-2556.99,0.00028048,2]
[364741668,1749225032626,-154.61,0.00028055,2]
[364741669,1749225032636,-1000.0,0.00028189,2]
[364741670,1749225032646,-157.35,0.00028203,2]
[364741671,1749225032655,-202.16,0.00028206,2]
[364741672,1749225032665,-207.4,0.00028217,2]
[364741673,1749225032674,-1200.0,0.00028232,2]
[364741674,1749225032684,-4340.259862,0.00028233,2]
[364741675,1749225032694,-300.0,0.00028375,2]
[364741676,1749225032703,-705.5,0.0002859,2]
[364741677,1749225032713,-151.0,0.00028684,2]
[364741678,1749225032723,-500.0,0.00028684,2]
[364741679,1749225032732,-500.0,0.00028684,2]
[364741680,1749225032743,-151.0,0.00028684,2]
[364741681,1749225032752,-151.0,0.00028684,2]
[364741682,1749225032762,-500.0,0.00028684,2]
[364741683,1749225032772,-500.0,0.00028684,2]
[364741684,1749225032782,-180.64164269,0.00028692,2]
[364741685,1749225032792,-1000.0,0.00028701,2]
[364741686,1749225032802,-8272.31040943,0.00028701,2]
[364741687,1749225032814,-443.74154585,0.00028701,2]
[364741688,1749225032826,-15183.94804472,0.00028701,2]
[364741689,1749225032835,-1240.12974715,0.000288,2]
[364741690,1749225032845,-305.83,0.0002883,2]
[364741691,1749225032854,-1000.0,0.00028884,2]
[364741692,1749225032864,-203.4,0.00028937,2]
[364741693,1749225032873,-165.38,0.00028952,2]
[364741694,1749225032883,-3309.10882108,0.00029079,2]
[364741698,1749225038617,-6775.46117892,0.00029079,2]
[364741699,1749225038627,-203.0,0.00029169,7]
[364741700,1749225038636,-348.56,0.00029235,30]
[364741701,1749225038646,-484.746131,0.00029408,6]
[364741702,1749225038656,-150.0,0.0002946,2]
[364741703,1749225038665,-300.0,0.0002946,2]
[364741704,1749225038674,-854.03,0.0002946,2]
[364741705,1749225038684,-164.81,0.0002946,2]
[364741706,1749225038692,-215.0738,0.00029586,2]
[364741707,1749225038702,-177.41567776,0.0002976,2]
[364741708,1749225038711,-787.01230767,0.00029787,2]
[364741709,1749225038720,-2500.0,0.00029787,2]
[364741710,1749225038728,-150.36942211,0.00029788,2]
[364741711,1749225038737,-160.56675033,0.00029788,2]
[364741712,1749225038747,-4355.90018221,0.00029789,2]
[364741713,1749225038758,-644.09981779,0.00029789,2]
[364741714,1749225038767,-2983.19828076,0.000298,2]
[364741715,1749225038779,-578.80171924,0.000298,2]
[364741716,1749225038788,-346.18175,0.0002986,2]
[364741717,1749225038797,-1000.0,0.00029869,2]
[364741718,1749225038806,-159.77763419,0.00029873,5]
[364741719,1749225038815,-500.0,0.00029873,5]
[364741720,1749225038824,-500.0,0.00029873,5]
[364741721,1749225038834,-500.0,0.00029873,5]
[364741722,1749225038843,-500.0,0.00029873,5]
[364741723,1749225038852,-500.0,0.00029873,5]
[364741724,1749225038862,-500.0,0.00029873,5]
[364741725,1749225038871,-159.73554583,0.00029873,5]
[364741727,1749225038881,-500.0,0.00029873,5]
[364741729,1749225038890,-1640.57335072,0.00029878,2]
[364741885,1749225040735,-45.58664928,0.00029878,2]
[364741887,1749225040744,-307.82778178,0.00029879,2]
[364741889,1749225040755,-459.87518231,0.00029879,2]
[364741929,1749225041175,-1435.57750277,0.00029879,2]
[364741931,1749225041185,-500.0,0.00029886,2]
[364741933,1749225041194,-500.0,0.00029886,2]
[364741935,1749225041204,-500.0,0.00029886,2]
[364741937,1749225041213,-500.0,0.00029886,2]
[364741939,1749225041222,-500.0,0.00029886,2]
[364741940,1749225041231,-500.0,0.00029886,2]
[364741941,1749225041241,-500.0,0.00029886,2]
[364741942,1749225041250,-500.0,0.00029886,2]
[364741943,1749225041260,-500.0,0.00029886,2]
[364741944,1749225041270,-500.0,0.00029886,2]
[364741945,1749225041279,-312.27183285,0.00029886,2]
[364741946,1749225041289,-500.0,0.00029886,2]
[364741947,1749225041298,-500.0,0.00029886,2]
[364741948,1749225041308,-500.0,0.00029886,2]
[364741949,1749225041317,-500.0,0.00029886,2]
[364741950,1749225041327,-500.0,0.00029886,2]
[364741951,1749225041337,-500.0,0.00029886,2]
[364741952,1749225041346,-500.0,0.00029886,2]
[364741953,1749225041356,-500.0,0.00029886,2]
[364741954,1749225041365,-500.0,0.00029886,2]
[364741955,1749225041375,-500.0,0.00029886,2]
[364741956,1749225041385,-551.25624148,0.00029886,2]
[364741957,1749225041394,-500.0,0.00029886,2]
[364741959,1749225041404,-500.0,0.00029886,2]
[364741961,1749225041413,-399.6831105,0.00029886,2]
[364741963,1749225041423,-500.0,0.00029886,2]
[364741965,1749225041432,-500.0,0.00029886,2]
[364741967,1749225041441,-500.0,0.00029886,2]
[364741969,1749225041451,-500.0,0.00029886,2]
[364741971,1749225041460,-467.43444719,0.00029886,2]
[364741973,1749225041470,-500.0,0.00029886,2]
[364741975,1749225041479,-500.0,0.00029886,2]
[364741977,1749225041489,-465.58629147,0.00029886,2]
[364741979,1749225041498,-500.0,0.00029886,2]
[364741981,1749225041507,-500.0,0.00029886,2]
[364741983,1749225041517,-500.0,0.00029886,2]
[364741985,1749225041527,-474.17608464,0.00029886,2]
[364741987,1749225041539,-500.0,0.00029886,2]
[364741989,1749225041549,-500.0,0.00029886,2]
[364741991,1749225041559,-500.0,0.00029886,2]
[364741993,1749225041568,-500.0,0.00029886,2]
[364741995,1749225041579,-500.0,0.00029886,2]
[364741997,1749225041589,-500.0,0.00029886,2]
[364741999,1749225041599,-500.0,0.00029886,2]
[364742002,1749225041609,-500.0,0.00029886,2]
[364742004,1749225041619,-500.0,0.00029886,2]
[364742006,1749225041629,-500.0,0.00029886,2]
[364742008,1749225041639,-500.0,0.00029886,2]
[364742011,1749225041658,-500.0,0.00029886,2]
[364742013,1749225041669,-500.0,0.00029886,2]
[364742015,1749225041679,-500.0,0.00029886,2]
[364742017,1749225041689,-500.0,0.00029886,2]
[364742019,1749225041698,-500.0,0.00029886,2]
[364742021,1749225041707,-500.0,0.00029886,2]
[364742023,1749225041717,-500.0,0.00029886,2]
[364742025,1749225041726,-500.0,0.00029886,2]
[364742027,1749225041736,-500.0,0.00029886,2]
[364742029,1749225041745,-500.0,0.00029886,2]
[364742031,1749225041756,-500.0,0.00029886,2]
[364742033,1749225041765,-500.0,0.00029886,2]
[364742035,1749225041775,-500.0,0.00029886,2]
[364742037,1749225041785,-500.0,0.00029886,2]
[364742039,1749225041795,-500.0,0.00029886,2]
[364742041,1749225041804,-500.0,0.00029886,2]
[364742043,1749225041814,-500.0,0.00029886,2]
[364742045,1749225041824,-500.0,0.00029886,2]
[364742047,1749225041834,-443.62402992,0.00029887,5]
[364742049,1749225041843,-480.0,0.00029887,5]
[364742051,1749225041853,-484.73129032,0.00029887,5]
[364742053,1749225041863,-480.0,0.00029887,5]
[364742055,1749225041873,-480.0,0.00029887,5]
[364742057,1749225041883,-602.79866779,0.00029887,5]
[364742059,1749225041892,-480.0,0.00029887,5]
[364742061,1749225041902,-246.05266771,0.00029887,5]
[364742063,1749225041911,-480.0,0.00029887,5]
[364742065,1749225041920,-480.0,0.00029887,5]
[364742067,1749225041930,-480.0,0.00029887,5]
[364742069,1749225041941,-480.0,0.00029887,5]
[364742071,1749225041950,-480.0,0.00029887,5]
[364742073,1749225041960,-480.0,0.00029887,5]
[364742075,1749225041977,-446.02258634,0.00029887,5]
[364742077,1749225041987,-480.0,0.00029887,5]
[364742079,1749225041998,-480.0,0.00029887,5]
[364742081,1749225042009,-480.0,0.00029887,5]
[364742083,1749225042019,-480.0,0.00029887,5]
[364742085,1749225042029,-480.0,0.00029887,5]
[364742087,1749225042041,-480.0,0.00029887,5]
[364742089,1749225042051,-480.0,0.00029887,5]
[364742091,1749225042062,-480.0,0.00029887,5]
[364742093,1749225042072,-480.0,0.00029887,5]
[364742095,1749225042081,-376.84998682,0.00029887,5]
[364742097,1749225042091,-480.0,0.00029887,5]
[364742100,1749225042101,-471.99101096,0.00029887,5]
[364742102,1749225042117,-484.25389279,0.00029887,5]
[364742104,1749225042128,-480.0,0.00029887,5]
[364742106,1749225042139,-480.0,0.00029887,5]
[364742108,1749225042149,-480.0,0.00029887,5]
[364742110,1749225042159,-480.0,0.00029887,5]
[364742112,1749225042169,-294.85269603,0.00029887,5]
[364742114,1749225042179,-480.0,0.00029887,5]
[364742116,1749225042190,-497.879911,0.00029887,5]
[364742118,1749225042200,-500.74713263,0.00029887,5]
[364742120,1749225042211,-596.89242783,0.00029887,5]
[364742122,1749225042222,-460.0,0.00029887,5]
[364742125,1749225042233,-283.90117501,0.00029887,5]
[364742127,1749225042243,-490.13198096,0.00029887,5]
[364742129,1749225042253,-480.0,0.00029887,5]
[364742131,1749225042263,-499.43211618,0.00029887,5]
[364742133,1749225042274,-480.0,0.00029887,5]
[364742135,1749225042285,-480.0,0.00029887,5]
[364742137,1749225042296,-480.0,0.00029887,5]
[364742139,1749225042306,-480.0,0.00029887,5]
[364742142,1749225042316,-480.0,0.00029887,5]
[364742144,1749225042327,-415.97566595,0.00029887,5]
[364742146,1749225042337,-480.0,0.00029887,5]
[364742148,1749225042348,-498.30516853,0.00029887,5]
[364742150,1749225042358,-611.07,0.00029887,5]
[364742152,1749225042368,-480.0,0.00029887,5]
[364742154,1749225042382,-1273.2,0.00029887,5]
[364742156,1749225042393,-480.0,0.00029887,5]
[364742159,1749225042405,-480.0,0.00029887,5]
[364742161,1749225042416,-480.0,0.00029887,5]
[364742163,1749225042427,-3262.5,0.00029887,5]
[364742165,1749225042437,-480.0,0.00029887,5]
[364742167,1749225042448,-480.0,0.00029887,5]
[364742169,1749225042459,-1185.98,0.00029887,5]
[364742171,1749225042473,-669.82,0.00029887,5]
[364742173,1749225042488,-480.0,0.00029887,5]
[364742175,1749225042504,-480.0,0.00029887,5]
[364742177,1749225042524,-480.0,0.00029887,5]
[364742179,1749225042547,-480.0,0.00029887,5]
[364742181,1749225042569,-721.76,0.00029887,5]
[364742184,1749225042590,-480.0,0.00029887,5]
[364742186,1749225042611,-480.0,0.00029887,5]
[364742188,1749225042632,-484.88468181,0.00029887,5]
[364742190,1749225042654,-1430.19,0.00029887,5]
[364742192,1749225042674,-1307.34,0.00029887,5]
[364742194,1749225042696,-480.0,0.00029887,5]
[364742196,1749225042717,-1686.87,0.00029887,5]
[364742198,1749225042738,-480.0,0.00029887,5]
[364742200,1749225042760,-198.64409613,0.00029887,5]
[364742202,1749225042770,-480.0,0.00029887,5]
[364742205,1749225042782,-3568.75,0.00029887,5]
[364742207,1749225042796,-480.0,0.00029887,5]
[364742209,1749225042807,-480.0,0.00029887,5]
[364742211,1749225042817,-1421.89,0.00029887,5]
[364742213,1749225042827,-480.0,0.00029887,5]
[364742215,1749225042838,-773.9,0.00029887,5]
[364742218,1749225042848,-480.0,0.00029887,5]
[364742220,1749225042858,-480.0,0.00029887,5]
[364742222,1749225042869,-778.1,0.00029887,5]
[364742224,1749225042879,-480.0,0.00029887,5]
[364742226,1749225042890,-649.88,0.00029887,5]
[364742228,1749225042900,-3599.69,0.00029887,5]
[364742230,1749225042911,-480.0,0.00029887,5]
[364742232,1749225042921,-513.89,0.00029887,5]
[364742235,1749225042932,-214.89071463,0.00029887,5]
[364742237,1749225042942,-1513.8,0.00029887,5]
[364742239,1749225042952,-868.24,0.00029887,5]
[364742241,1749225042963,-480.0,0.00029887,5]
[364742243,1749225042976,-480.0,0.00029887,5]
[364742245,1749225042986,-549.25,0.00029887,5]
[364742247,1749225042996,-480.0,0.00029887,5]
[364742249,1749225043006,-480.0,0.00029887,5]
[364742251,1749225043017,-480.0,0.00029887,5]
[364742254,1749225043028,-494.47936792,0.00029887,5]
[364742256,1749225043039,-480.0,0.00029887,5]
[364742258,1749225043053,-480.0,0.00029887,5]
[364742260,1749225043063,-589.86,0.00029887,5]
[364742262,1749225043074,-519.14,0.00029887,2]
[364742264,1749225043085,-699.56,0.00029887,5]
[364742266,1749225043095,-480.0,0.00029887,5]
[364742269,1749225043106,-950.86,0.00029887,5]
[364742271,1749225043117,-480.0,0.00029887,5]
[364742273,1749225043128,-660.5,0.00029887,2]
[364742275,1749225043140,-1626.9,0.00029887,5]
[364742277,1749225043151,-755.02,0.00029887,5]
[364742279,1749225043162,-480.0,0.00029887,5]
[364742281,1749225043173,-480.0,0.00029887,5]
[364742284,1749225043183,-653.5,0.00029887,5]
[364742286,1749225043194,-4551.27,0.00029887,5]
[364742288,1749225043205,-318.55486923,0.00029887,5]
[364742290,1749225043216,-438.36805313,0.00029887,5]
[364742292,1749225043227,-480.0,0.00029887,5]
[364742294,1749225043238,-480.0,0.00029887,5]
[364742297,1749225043249,-480.0,0.00029887,5]
[364742299,1749225043260,-657.34,0.00029887,5]
[364742301,1749225043271,-869.04,0.00029887,5]
[364742303,1749225043281,-889.3,0.00029888,5]
[364742305,1749225043292,-480.0,0.00029888,5]
[364742307,1749225043303,-499.21,0.00029888,5]
[364742309,1749225043314,-480.0,0.00029888,5]
[364742311,1749225043324,-480.0,0.00029888,5]
[364742314,1749225043334,-460.0,0.00029888,5]
[364742316,1749225043344,-480.0,0.00029888,5]
[364742317,1749225043354,-480.0,0.00029888,5]
[364742320,1749225043365,-480.0,0.00029888,5]
[364742322,1749225043374,-730.34,0.00029888,5]
[364742324,1749225043384,-480.0,0.00029888,5]
[364742326,1749225043394,-480.0,0.00029888,5]
[364742328,1749225043404,-458.03305328,0.00029888,5]
[364742330,1749225043415,-480.0,0.00029888,5]
[364742332,1749225043425,-480.0,0.00029888,5]
[364742334,1749225043435,-480.0,0.00029888,5]
[364742336,1749225043445,-480.0,0.00029888,5]
[364742338,1749225043455,-480.0,0.00029888,5]
[364742340,1749225043464,-480.0,0.00029888,5]
[364742342,1749225043474,-480.0,0.00029888,5]
[364742344,1749225043484,-480.0,0.00029888,5]
[364742346,1749225043495,-592.14,0.00029888,5]
[364742348,1749225043504,-480.0,0.00029888,5]
[364742350,1749225043515,-692.29,0.00029888,5]
[364742352,1749225043525,-480.0,0.00029888,5]
[364742354,1749225043535,-929.62,0.00029888,5]
[364742356,1749225043545,-806.04,0.00029888,5]
[364742359,1749225043556,-480.0,0.00029888,5]
[364742361,1749225043566,-1472.432166,0.00029888,5]
[364742363,1749225043576,-480.0,0.00029888,5]
[364742365,1749225043587,-480.0,0.00029888,5]
[364742367,1749225043597,-480.0,0.00029888,5]
[364742369,1749225043607,-607.06,0.00029888,5]
[364742372,1749225043625,-480.0,0.00029888,5]
[364742374,1749225043638,-1512.941641,0.00029888,5]
[364742376,1749225043648,-480.0,0.00029888,5]
[364742378,1749225043659,-567.94,0.00029888,5]
[364742381,1749225043670,-785.33,0.00029888,5]
[364742383,1749225043681,-480.0,0.00029888,5]
[364742385,1749225043691,-480.0,0.00029888,5]
[364742387,1749225043701,-480.0,0.00029888,5]
[364742389,1749225043712,-480.0,0.00029888,5]
[364742391,1749225043722,-480.0,0.00029888,5]
[364742393,1749225043733,-480.0,0.00029888,5]
[364742396,1749225043744,-1084.6,0.00029888,5]
[364742398,1749225043754,-651.17,0.00029888,5]
[364742400,1749225043764,-480.0,0.00029888,5]
[364742402,1749225043775,-163.67194531,0.00029888,5]
[364742404,1749225043785,-480.0,0.00029888,5]
[364742406,1749225043797,-480.0,0.00029888,5]
[364742408,1749225043807,-480.0,0.00029888,5]
[364742411,1749225043818,-480.0,0.00029888,5]
[364742413,1749225043828,-201.8274199,0.00029888,5]
[364742415,1749225043840,-480.0,0.00029888,5]
[364742417,1749225043851,-480.0,0.00029888,5]
[364742419,1749225043861,-1232.75,0.00029888,5]
[364742421,1749225043872,-480.0,0.00029888,5]
[364742424,1749225043882,-817.46,0.00029888,5]
[364742426,1749225043893,-480.0,0.00029888,5]
[364742428,1749225043903,-480.0,0.00029888,5]
[364742430,1749225043914,-1527.33,0.00029888,5]
[364742432,1749225043924,-959.45,0.00029888,5]
[364742434,1749225043934,-1000.0,0.00029888,5]
[364742436,1749225043944,-480.0,0.00029888,5]
[364742438,1749225043954,-480.0,0.00029888,5]
[364742440,1749225043966,-813.18,0.00029888,5]
[364742443,1749225043980,-732.88,0.00029888,5]
[364742445,1749225043991,-592.49,0.00029888,5]
[364742447,1749225044001,-480.0,0.00029888,5]
[364742449,1749225044012,-492.8597847,0.00029888,5]
[364742451,1749225044022,-616.44,0.00029888,5]
[364742453,1749225044032,-917.47,0.00029888,5]
[364742455,1749225044042,-700.5,0.00029888,5]
[364742457,1749225044054,-1423.02,0.00029888,5]
[364742459,1749225044064,-588.45,0.00029888,5]
[364742461,1749225044074,-1281.73,0.00029888,5]
[364742464,1749225044085,-1645.55,0.00029888,5]
[364742466,1749225044095,-1096.61,0.00029888,5]
[364742468,1749225044105,-612.03,0.00029888,5]
[364742470,1749225044116,-2963.95,0.00029888,5]
[364742472,1749225044127,-1015.08,0.00029888,5]
[364742474,1749225044137,-7379.04,0.00029888,5]
[364742476,1749225044147,-760.54,0.00029888,5]
[364742478,1749225044157,-480.0,0.00029888,5]
[364742480,1749225044168,-480.0,0.00029888,5]
[364742482,1749225044178,-1736.08,0.00029888,5]
[364742485,1749225044188,-480.0,0.00029888,5]
[364742487,1749225044199,-1037.14,0.00029888,5]
[364742489,1749225044209,-480.0,0.00029888,5]
[364742491,1749225044220,-488.71,0.00029888,5]
[364742493,1749225044230,-480.0,0.00029888,5]
[364742495,1749225044240,-534.78,0.00029888,5]
[364742497,1749225044250,-480.0,0.00029888,5]
[364742499,1749225044260,-480.0,0.00029888,5]
[364742501,1749225044271,-491.85,0.00029888,5]
[364742504,1749225044281,-1160.52,0.00029888,5]
[364742506,1749225044291,-1000.0,0.00029888,2]
[364742508,1749225044302,-480.0,0.00029888,5]
[364742510,1749225044312,-480.0,0.00029888,5]
[364742512,1749225044322,-855.32,0.00029888,5]
[364742514,1749225044332,-480.0,0.00029888,5]
[364742516,1749225044342,-1193.05,0.00029888,5]
[364742518,1749225044352,-480.0,0.00029888,5]
[364742520,1749225044363,-480.0,0.00029888,5]
[364742522,1749225044373,-60441.49,0.00029888,5]
[364742524,1749225044383,-1557.89,0.00029888,5]
[364742527,1749225044393,-570.36,0.00029888,5]
[364742529,1749225044404,-480.0,0.00029888,5]
[364742531,1749225044415,-3292.68,0.00029888,5]
[364742533,1749225044425,-1191.73,0.00029888,5]
[364742535,1749225044436,-480.0,0.00029888,5]
[364742537,1749225044446,-1667.61,0.00029888,5]
[364742539,1749225044456,-480.0,0.00029888,5]
[364742541,1749225044466,-1526.61,0.00029888,5]
[364742543,1749225044477,-710.71,0.00029888,5]
[364742545,1749225044487,-480.0,0.00029888,5]
[364742547,1749225044497,-4070.87,0.00029888,5]
[364742549,1749225044507,-3081.47,0.00029888,5]
[364742551,1749225044518,-1022.61,0.00029888,5]
[364742554,1749225044528,-846.73,0.00029888,5]
[364742556,1749225044540,-480.0,0.00029888,5]
[364742557,1749225044551,-480.0,0.00029888,5]
[364742558,1749225044562,-1385.96,0.00029888,5]
[364742559,1749225044573,-984.32,0.00029888,5]
[364742560,1749225044583,-480.0,0.00029888,5]
[364742561,1749225044593,-2341.08,0.00029888,5]
[364742562,1749225044603,-480.0,0.00029888,5]
[364742563,1749225044613,-480.0,0.00029888,5]
[364742564,1749225044623,-918.18,0.00029888,5]
[364742565,1749225044633,-4741.24,0.00029888,5]
[364742566,1749225044643,-810.48,0.00029888,5]
[364742567,1749225044653,-1625.11,0.00029888,5]
[364742569,1749225044663,-480.0,0.00029888,5]
[364742571,1749225044673,-480.0,0.00029888,5]
[364742573,1749225044684,-1191.32,0.00029888,5]
[364742575,1749225044694,-480.0,0.00029888,5]
[364742577,1749225044704,-480.0,0.00029888,5]
[364742579,1749225044714,-2804.93,0.00029888,5]
[364742581,1749225044724,-511.53093234,0.00029888,5]
[364742583,1749225044736,-780.71,0.00029888,5]
[364742617,1749225044748,-482.32,0.00029888,5]
[364742619,1749225045062,-1171.75,0.00029888,5]
[364742621,1749225045072,-480.0,0.00029888,5]
[364742623,1749225045082,-612.93468126,0.00029888,5]
[364742625,1749225045091,-1681.29,0.00029888,5]
[364742627,1749225045100,-493.59920009,0.00029888,5]
[364742629,1749225045109,-480.0,0.00029888,5]
[364742631,1749225045120,-2924.02,0.00029888,5]
[364742633,1749225045130,-716.04,0.00029888,5]
[364742635,1749225045139,-1218.46,0.00029888,5]
[364742637,1749225045149,-1926.89,0.00029888,5]
[364742639,1749225045158,-1390.8,0.00029888,5]
[364742641,1749225045168,-480.0,0.00029888,5]
[364742643,1749225045177,-641.61,0.00029888,5]
[364742645,1749225045187,-1144.63,0.00029888,5]
[364742647,1749225045196,-480.0,0.00029888,5]
[364742649,1749225045205,-480.0,0.00029888,5]
[364742651,1749225045215,-690.15,0.00029888,5]
[364742653,1749225045224,-480.0,0.00029888,5]
[364742655,1749225045234,-480.0,0.00029888,5]
[364742657,1749225045243,-1751.51,0.00029888,5]
[364742659,1749225045253,-493.35,0.00029888,5]
[364742661,1749225045264,-480.0,0.00029888,5]
[364742663,1749225045273,-669.46,0.00029888,5]
[364742665,1749225045282,-1890.1,0.00029888,5]
[364742667,1749225045292,-220.0,0.00029888,2]
[364742669,1749225045302,-480.0,0.00029888,5]
[364742671,1749225045311,-363.3062526,0.00029888,3]
[364742673,1749225045320,-2012.96,0.00029888,5]
[364742675,1749225045330,-480.0,0.00029888,5]
[364742677,1749225045340,-480.0,0.00029888,5]
[364742679,1749225045350,-480.0,0.00029888,5]
[364742681,1749225045359,-595.18,0.00029888,5]
[364742683,1749225045369,-480.0,0.00029888,5]
[364742685,1749225045378,-480.0,0.00029888,5]
[364742687,1749225045388,-480.0,0.00029888,5]
[364742689,1749225045398,-6891.1,0.00029888,5]
[364742691,1749225045407,-1256.96,0.00029888,5]
[364742693,1749225045417,-482.48921709,0.00029888,5]
[364742695,1749225045427,-1471.44,0.00029888,5]
[364742697,1749225045436,-553.96,0.00029888,5]
[364742699,1749225045446,-480.0,0.00029888,5]
[364742701,1749225045456,-480.0,0.00029888,5]
[364742703,1749225045466,-1477.47,0.00029888,5]
[364742705,1749225045476,-7771.38,0.00029888,5]
[364742707,1749225045486,-480.0,0.00029888,5]
[364742709,1749225045496,-480.0,0.00029888,5]
[364742711,1749225045506,-2203.28046686,0.00029889,2]
[364742713,1749225045516,-480.0,0.00029889,5]
[364742715,1749225045526,-480.0,0.00029889,5]
[364742717,1749225045536,-480.0,0.00029889,5]
[364742719,1749225045546,-480.0,0.00029889,5]
[364742721,1749225045556,-600.0,0.00029889,30]
[364742723,1749225045566,-480.0,0.00029889,5]
[364742725,1749225045576,-480.0,0.00029889,5]
[364742727,1749225045585,-480.0,0.00029889,5]
[364742729,1749225045595,-480.0,0.00029889,5]
[364742731,1749225045605,-480.0,0.00029889,5]
[364742733,1749225045614,-480.0,0.00029889,5]
[364742735,1749225045624,-544.13382013,0.00029889,5]